lending/lending_fUSD_20250501
["ID","MTS","AMOUNT","RATE_DAILY","PERIOD"]
[359513614,1746083442947,-69831.45,0.00044808,14]
[359513615,1746083442959,-35751.14,0.00044808,14]
[359513616,1746083442969,-362.9,0.00044818,2]
[359513617,1746083442979,-150.0,0.00044823,2]
[359513618,1746083442990,-709.89211021,0.00044844,15]
[359513619,1746083443000,-150.0,0.00044867,2]
[359513620,1746083443011,-150.0,0.00044868,2]
[359513621,1746083443020,-150.0,0.00044896,2]
[359513622,1746083443030,-150.0,0.00044899,2]
[359513623,1746083443039,-150.0,0.0004492,2]
[359513624,1746083443049,-150.0,0.00044926,2]
[359513625,1746083443058,-150.0,0.00044953,2]
[359513626,1746083443068,-150.0,0.00044954,2]
[359513627,1746083443077,-150.0,0.00044971,2]
[359513628,1746083443088,-150.0,0.00044973,2]
[359513629,1746083443097,-150.0,0.00044981,2]
[359513630,1746083443106,-150.0,0.00044988,2]
[359513631,1746083443116,-3500.0,0.00045,3]
[359513632,1746083443125,-3005.45970215,0.00045,20]
[359513633,1746083443135,-500.0,0.00045,14]
[359513634,1746083443145,-282.23076425,0.00045,120]
[359513635,1746083443155,-500.0,0.00045,30]
[359513636,1746083443164,-1000.0,0.00045,120]
[359513637,1746083443174,-1025.0,0.00045,120]
[359513638,1746083443184,-385.33415218,0.00045,120]
[359513639,1746083443193,-3511.97,0.00045,120]
[359513640,1746083443203,-3511.97,0.00045,120]
[359513641,1746083443213,-3511.97,0.00045,120]
[359513642,1746083443222,-297.09274246,0.00045,120]
[359513643,1746083443231,-152.0,0.00045,2]
[359513644,1746083443241,-442.01,0.00045,2]
[359513646,1746083443250,-289.06198421,0.00045,120]
[359513648,1746083443260,-1448.06484452,0.00045,120]
[359513650,1746083443269,-500.0,0.00045015,30]
[359513652,1746083443278,-150.0,0.00045019,2]
[359513654,1746083443287,-709.89211021,0.00045033,15]
[359513655,1746083443296,-150.0,0.00045035,2]
[359513656,1746083443308,-150.0,0.0004504,2]
[359513658,1746083443317,-6877.68,0.00045046,14]
[359513660,1746083443327,-25726.45,0.00045046,14]
[359513662,1746083443336,-150.0,0.0004505,2]
[359513663,1746083443346,-150.0,0.00045059,2]
[359513664,1746083443359,-1197.0,0.0004506,30]
[359513665,1746083443368,-347.39204403,0.0004506,30]
[359513666,1746083443378,-567.90069505,0.00045072,51]
[359513667,1746083443387,-150.0,0.00045085,2]
[359513668,1746083443399,-150.0,0.00045086,2]
[359513669,1746083443408,-150.0,0.00045096,2]
[359513670,1746083443417,-150.0,0.00045097,2]
[359513671,1746083443427,-150.0,0.00045108,2]
[359513672,1746083443436,-359.65006695,0.0004512,27]
[359513673,1746083443446,-150.0,0.00045125,2]
[359513674,1746083443456,-150.0,0.00045136,2]
[359513675,1746083443466,-150.0,0.0004514,14]
[359513676,1746083443475,-150.0,0.00045143,2]
[359513677,1746083443485,-150.0,0.00045144,2]
[359513678,1746083443494,-150.0,0.00045156,2]
[359513679,1746083443503,-150.0,0.00045159,2]
[359513680,1746083443513,-150.0,0.00045161,2]
[359513681,1746083443522,-150.0,0.00045163,2]
[359513682,1746083443533,-23474.19,0.00045176,14]
[359513683,1746083443542,-152918.97994684,0.00045176,14]
[359513684,1746083443575,-3930.55779637,0.00045176,14]
[359513685,1746083443590,-100129.1860485,0.00045176,14]
[359513686,1746083443620,-10464.11620829,0.00045176,14]
[359513687,1746083443629,-150.0,0.00045182,2]
[359513688,1746083443639,-150.0,0.00045185,2]
[359513689,1746083443648,-150.0,0.00045187,2]
[359513690,1746083443657,-150.0,0.00045194,2]
[359513691,1746083443666,-12506.13249171,0.00045195,4]
[359513693,1746083443826,-3180.43765387,0.00045195,4]
[359513694,1746083443856,-10638.87257432,0.00045195,4]
[359513695,1746083443866,-150.0,0.00045202,2]
[359513696,1746083443875,-150.0,0.00045204,2]
[359513697,1746083443885,-6684.0,0.00045205,7]
[359513698,1746083443894,-709.89211021,0.00045221,15]
[359513699,1746083443904,-504.82203822,0.00045226,15]
[359513700,1746083443914,-150.0,0.00045227,2]
[359513701,1746083443923,-153.03635294,0.00045231,14]
[359513702,1746083443933,-150.0,0.00045232,2]
[359513703,1746083443943,-12000.0,0.00045244,8]
[359513704,1746083443953,-3990.95744689,0.00045246,17]
[359513705,1746083443963,-150.0,0.00045249,2]
[359513706,1746083443973,-150.0,0.00045253,30]
[359513707,1746083443983,-150.0,0.00045265,2]
[359513708,1746083443993,-504.82203814,0.00045267,15]
[359513709,1746083444003,-150.0,0.00045268,2]
[359513710,1746083444012,-164.85096544,0.00045281,2]
[359513711,1746083444022,-150.0,0.00045282,2]
[359513712,1746083444032,-150.0,0.00045285,2]
[359513713,1746083444042,-500.0,0.00045289,30]
[359513714,1746083444052,-150.0,0.00045297,2]
[359513715,1746083444062,-7371.64950204,0.000453,5]
[359513716,1746083444072,-1745.0,0.000453,120]
[359513717,1746083444083,-955.006,0.000453,14]
[359513718,1746083444092,-352.32189216,0.00045302,14]
[359513719,1746083444102,-150.0,0.00045302,2]
[359513720,1746083444112,-504.82203814,0.00045309,15]
[359513721,1746083444122,-150.0,0.00045314,2]
[359513722,1746083444132,-26325.4427199,0.00045315,4]
[359513723,1746083444142,-150.0,0.00045321,2]
[359513724,1746083444152,-150.0,0.00045322,2]
[359513725,1746083444162,-26325.4427199,0.00045323,4]
[359513726,1746083444173,-2662.63911754,0.00045333,2]
[359513727,1746083445679,-606.88640784,0.00033238,2]
[359513728,1746083445691,-546.29159216,0.00033238,2]
[359513729,1746083445700,-3637.75442772,0.00045333,2]
[359513733,1746083837164,250.0,0.00017,2]
[359513734,1746083838227,300.0,0.00019,2]
[359513735,1746083867868,318.0,0.00032877,60]
[359513736,1746083908292,151.19304193,0.00030136,120]
[359513758,1746084552734,328949.0,0.0003287,60]
[359513772,1746084565799,1445.67524281,0.00032877,60]
[359513775,1746084577097,50000.0,0.00032877,60]
[359513776,1746084595545,1004.28127603,0.0003,30]
[359513777,1746084615267,50000.0,0.0003,30]
[359513782,1746084631855,-194.57476,0.000198,2]
[359513784,1746084631864,-166.85083048,0.000199,2]
[359513785,1746084631874,-1567.36419576,0.000199,2]
[359513786,1746084631883,-207.26361937,0.000199,3]
[359513787,1746084631892,-200.0,0.0001995,2]
[359513788,1746084631902,-500.0,0.00019973,2]
[359513789,1746084631911,-502.60061193,0.00019973,2]
[359513790,1746084631921,-500.0,0.00019973,2]
[359513791,1746084631930,-500.0,0.00019973,2]
[359513792,1746084631939,-500.0,0.00019973,2]
[359513793,1746084631950,-156.26157837,0.0001999,2]
[359513794,1746084631959,-300.0,0.00019998,2]
[359513795,1746084631969,-1200.0,0.00019998,2]
[359513796,1746084631979,-2386.72422934,0.00019999,2]
[359513797,1746084631991,-9002.19999,0.00019999,2]
[359513798,1746084632003,-561.48680741,0.00019999,2]
[359513799,1746084632014,-4145.94874202,0.00019999,2]
[359513813,1746084638008,-74909.40581997,0.00019999,2]
[359513814,1746084638018,-500.0,0.00019999,2]
[359513815,1746084638027,-323.27492623,0.00019999,2]
[359513816,1746084638037,-500.0,0.00019999,2]
[359513817,1746084638046,-2079.98965133,0.00019999,2]
[359513818,1746084638055,-170.98615039,0.00019999,2]
[359513819,1746084638065,-143197.57258084,0.0002,2]
[359513820,1746084638076,-13490.83702206,0.0002,2]
[359513821,1746084638110,-3739.78643165,0.0002,2]
[359513822,1746084638122,-6772.80109225,0.0002,2]
[359513823,1746084638133,-66968.80981131,0.0002,2]
[359513824,1746084638145,-4171408.09913712,0.0002,2]
[359513825,1746084638156,-48997.93491697,0.0002,2]
[359513903,1746084640130,-5232485.47758943,0.0002,2]
[359513904,1746084640225,-934.69,0.0002,2]
[359513905,1746084640318,-7871.7882867,0.0002,2]
[359513906,1746084640415,-419.04118095,0.0002,2]
[359513908,1746084640587,-924.27696073,0.0002,2]
[359513911,1746084642982,-299.25183862,0.000199,2]
[359513912,1746084642994,-122.96777192,0.000199,2]
[359513913,1746084643003,-1084.68960517,0.0002,2]
[359513914,1746084643016,-80918.83740736,0.0002,2]
[359513915,1746084643079,-742.70365438,0.0002,2]
[359513916,1746084643091,-937.86,0.0002,2]
[359513917,1746084643102,-2975.5473818,0.0002,2]
[359513961,1746084645986,-10822.58289913,0.0002,2]
[359513962,1746084646155,-1000.0,0.0002,2]
[359513963,1746084646168,-2954.7825387,0.0002,2]
[359513964,1746084646242,-504.262,0.0002,2]
[359513979,1746085650439,250.0,0.00017,2]
[359513980,1746085651505,168.32156732,0.00019,2]
[359513981,1746085651528,131.67843268,0.00019,2]
[359514031,1746085832479,-949.05,0.00019347,2]
[359514032,1746085832489,-200.0,0.00019473,2]
[359514034,1746085832499,-250.0,0.00019473,2]
[359514036,1746085832508,-1000.0,0.0001948,2]
[359514039,1746085832517,-928.589,0.000196,2]
[359514041,1746085832526,-157.5504823,0.00019797,2]
[359514043,1746085832536,-990.88010958,0.00019798,2]
[359514045,1746085832545,-189.99882473,0.00019798,2]
[359514047,1746085832554,-990.88010958,0.00019809,2]
[359514049,1746085832564,-1200.0,0.0001982,2]
[359514051,1746085832573,-990.88010958,0.00019821,2]
[359514053,1746085832582,-300.0,0.00019831,2]
[359514055,1746085832592,-990.88010958,0.00019832,2]
[359514057,1746085832601,-300.0,0.00019842,2]
[359514059,1746085832610,-990.88010958,0.00019843,2]
[359514061,1746085832619,-990.88010958,0.00019855,2]
[359514062,1746085832629,-990.88010958,0.00019866,2]
[359514065,1746085832639,-500.0,0.00019873,2]
[359514066,1746085832648,-505.32338764,0.00019873,2]
[359514068,1746085832657,-157.23737719,0.00019873,2]
[359514070,1746085832666,-503.05435588,0.00019873,2]
[359514072,1746085832676,-500.0,0.00019873,2]
[359514074,1746085832685,-314.52827151,0.00019873,2]
[359514076,1746085832694,-553.0106179,0.00019873,2]
[359514078,1746085832703,-990.88010958,0.00019877,2]
[359514080,1746085832712,-990.88010958,0.00019889,2]
[359514082,1746085832722,-3387.34844896,0.00019896,2]
[359514084,1746085832731,-3387.34844896,0.00019896,2]
[359514086,1746085832744,-3387.34844896,0.00019896,2]
[359514088,1746085832753,-3387.34844896,0.00019896,2]
[359514090,1746085832762,-3387.34844896,0.00019896,2]
[359514092,1746085832771,-1098.32957861,0.00019897,2]
[359514094,1746085832781,-1674.05515249,0.00019899,2]
[359514096,1746085832790,-2340.4188,0.000199,2]
[359514098,1746085832799,-5319.91483506,0.000199,2]
[359514102,1746085832825,-592.45469495,0.00019896,2]
[359514117,1746085833045,-1154.68259828,0.00019896,2]
[359514118,1746085833073,-1640.21115573,0.00019896,2]
[359514119,1746085833083,-1598.77880245,0.00019896,2]
[359514127,1746085838082,-1788.56964651,0.00019896,2]
[359514129,1746085838092,-3387.34844896,0.00019896,2]
[359514131,1746085838102,-3387.34844896,0.00019896,2]
[359514132,1746085838114,-3387.34844896,0.00019896,2]
[359514133,1746085838124,-3387.34844896,0.00019896,2]
[359514134,1746085838134,-3387.34844896,0.00019896,2]
[359514135,1746085838143,-3387.34844896,0.00019896,2]
[359514136,1746085838152,-3387.34844896,0.00019896,2]
[359514137,1746085838161,-3387.34844896,0.00019896,2]
[359514138,1746085838171,-3387.34844896,0.00019896,2]
[359514139,1746085838180,-3387.34844896,0.00019896,2]
[359514140,1746085838190,-3387.34844896,0.00019896,2]
[359514141,1746085838199,-3387.34844896,0.00019896,2]
[359514142,1746085838208,-3387.34844896,0.00019896,2]
[359514143,1746085838218,-3387.34844896,0.00019896,2]
[359514144,1746085838228,-3387.34844896,0.00019896,2]
[359514145,1746085838238,-3387.34844896,0.00019896,2]
[359514146,1746085838247,-3387.34844896,0.00019896,2]
[359514147,1746085838255,-3387.34844896,0.00019896,2]
[359514148,1746085838262,-3387.34844896,0.00019896,2]
[359514149,1746085838271,-3387.34844896,0.00019896,2]
[359514150,1746085838279,-3387.34844896,0.00019896,2]
[359514151,1746085838288,-3387.34844896,0.00019896,2]
[359514152,1746085838296,-3387.34844896,0.00019896,2]
[359514153,1746085838306,-3387.34844896,0.00019896,2]
[359514154,1746085838314,-3387.34844896,0.00019896,2]
[359514155,1746085838323,-3387.34844896,0.00019896,2]
[359514156,1746085838331,-3387.34844896,0.00019896,2]
[359514157,1746085838340,-3387.34844896,0.00019896,2]
[359514158,1746085838348,-3387.34844896,0.00019896,2]
[359514159,1746085838357,-3387.34844896,0.00019896,2]
[359514160,1746085838366,-3387.34844896,0.00019896,2]
[359514161,1746085838374,-3387.34844896,0.00019896,2]
[359514162,1746085838383,-3387.34844896,0.00019896,2]
[359514163,1746085838391,-3387.34844896,0.00019896,2]
[359514164,1746085838400,-3387.34844896,0.00019896,2]
[359514165,1746085838409,-3387.34844896,0.00019896,2]
[359514166,1746085838418,-3387.34844896,0.00019896,2]
[359514167,1746085838426,-3387.34844896,0.00019896,2]
[359514168,1746085838433,-3387.34844896,0.00019896,2]
[359514169,1746085838440,-3387.34844896,0.00019896,2]
[359514170,1746085838447,-3387.34844896,0.00019896,2]
[359514171,1746085838453,-3387.34844896,0.00019896,2]
[359514172,1746085838460,-3387.34844896,0.00019896,2]
[359514173,1746085838467,-3387.34844896,0.00019896,2]
[359514174,1746085838473,-3387.34844896,0.00019896,2]
[359514175,1746085838480,-3387.34844896,0.00019896,2]
[359514176,1746085838486,-3729.25876494,0.000199,2]
[359514177,1746085838493,-171.19106512,0.000199,2]
[359514178,1746085838500,-322.84894423,0.000199,2]
[359514179,1746085838508,-84910.83585333,0.000199,2]
[359514180,1746085838517,-990.88010958,0.000199,2]
[359514181,1746085838527,-612.2993,0.000199,2]
[359514182,1746085838536,-2145.06347336,0.000199,2]
[359514183,1746085838545,-745.60714006,0.00019941,2]
[359514185,1746085838555,-185.65563741,0.00019973,2]
[359514186,1746085838564,-500.79231643,0.00019973,2]
[359514188,1746085838573,-500.60294482,0.00019973,2]
[359514190,1746085838582,-500.0,0.00019973,2]
[359514192,1746085838591,-500.0,0.00019973,2]
[359514194,1746085838600,-344.0,0.00019973,2]
[359514196,1746085838609,-500.0,0.00019973,2]
[359514197,1746085838618,-500.0,0.00019973,2]
[359514199,1746085838627,-500.59002653,0.00019973,2]
[359514201,1746085838636,-505.45280058,0.00019973,2]
[359514203,1746085838645,-500.0,0.00019973,2]
[359514205,1746085838655,-160.45172935,0.00019973,2]
[359514207,1746085838664,-344.27675877,0.00019973,2]
[359514209,1746085838673,-163.01328706,0.00019973,2]
[359514211,1746085838683,-500.0,0.00019973,2]
[359514213,1746085838692,-373.44777472,0.00019973,2]
[359514215,1746085838701,-330.87895996,0.00019973,2]
[359514217,1746085838710,-211.24478406,0.00019973,2]
[359514219,1746085838719,-500.0,0.00019973,2]
[359514221,1746085838729,-187.20036533,0.00019973,2]
[359514223,1746085838738,-500.0,0.00019973,2]
[359514225,1746085838750,-162.68185268,0.00019973,2]
[359514227,1746085838760,-500.0,0.00019973,2]
[359514229,1746085838769,-500.0,0.00019973,2]
[359514231,1746085838778,-500.0,0.00019973,2]
[359514233,1746085838787,-500.0,0.00019973,2]
[359514235,1746085838797,-500.0,0.00019973,2]
[359514237,1746085838806,-315.56371199,0.00019973,2]
[359514239,1746085838816,-500.0,0.00019973,2]
[359514241,1746085838825,-500.0,0.00019973,2]
[359514243,1746085838835,-500.0,0.00019973,2]
[359514245,1746085838844,-500.48107556,0.00019973,2]
[359514247,1746085838853,-500.0,0.00019973,2]
[359514249,1746085838862,-270.89897558,0.00019973,2]
[359514251,1746085838872,-500.0,0.00019973,2]
[359514253,1746085838881,-192845.3913617,0.00019986,2]
[359514255,1746085838891,-1132852.56282913,0.0002,2]
[359514257,1746085838900,-3269444.02937658,0.0002,2]
[359514259,1746085838912,-47190.88257328,0.0002,2]
[359514261,1746085838923,-16403.34802495,0.0002,2]
[359514264,1746085838934,-15941.7280249,0.0002,2]
[359514365,1746085840527,-608843.24930962,0.0002,2]
[359514366,1746085840537,-150.41,0.0002,2]
[359514367,1746085840546,-500.0,0.00020084,2]
[359514368,1746085840555,-300.0,0.00020866,2]
[359514369,1746085840565,-5550.29541067,0.000209,4]
[359514370,1746085840574,-247.2,0.00020931,2]
[359514371,1746085840583,-1858.74,0.00020931,2]
[359514372,1746085840592,-585.13,0.00020975,2]
[359514373,1746085840601,-681.63,0.00020984,2]
[359514374,1746085840610,-20000.0,0.00021,2]
[359514375,1746085840620,-350.0,0.00021,2]
[359514376,1746085840629,-250.0,0.00021097,2]
[359514377,1746085840638,-634.87,0.00021124,2]
[359514378,1746085840647,-500.0,0.00021145,2]
[359514379,1746085840656,-970.49,0.000212,2]
[359514380,1746085840665,-1298.18,0.00021211,2]
[359514381,1746085840674,-308.5,0.00021228,2]
[359514382,1746085840684,-200.0,0.00021265,2]
[359514383,1746085840693,-200.0,0.00021281,2]
[359514384,1746085840702,-250.0,0.00021281,2]
[359514385,1746085840711,-200.0,0.00021281,2]
[359514386,1746085840720,-250.0,0.00021281,2]
[359514387,1746085840729,-5122.4,0.0002137,2]
[359514388,1746085840740,-258.52,0.00021474,2]
[359514389,1746085840751,-23900.0,0.00021492,2]
[359514390,1746085840761,-200.0,0.00021498,2]
[359514391,1746085840770,-420.0,0.0002161,2]
[359514392,1746085840779,-949.05,0.00021611,2]
[359514393,1746085840788,-1680.0,0.00021689,2]
[359514394,1746085840798,-7314.86831856,0.000217,2]
[359514395,1746085840807,-5550.29541048,0.00021762,5]
[359514397,1746085840816,-5053.54823058,0.000218,2]
[359514398,1746085840825,-1000.0,0.00021915,2]
[359514399,1746085840834,-150.0,0.00021917,2]
[359514400,1746085840844,-151.0,0.00021918,2]
[359514401,1746085840853,-513.8227512,0.00021918,2]
[359514403,1746085840863,-1078.65763341,0.00022,14]
[359514404,1746085840872,-209.95,0.00022026,2]
[359514405,1746085840882,-166.66,0.00022148,2]
[359514406,1746085840891,-300.0,0.00022236,2]
[359514407,1746085840901,-2900.0,0.000225,15]
[359514408,1746085840910,-34265.62394593,0.000225,2]
[359514409,1746085840920,-5550.29541048,0.00022624,7]
[359514410,1746085840929,-505.41869876,0.0002271,2]
[359514411,1746085840939,-1627.01449967,0.00023,15]
[359514412,1746085840948,-1000.0,0.00023,14]
[359514413,1746085840959,-1503.31289762,0.00023,2]
[359514414,1746085840968,-400.0,0.00023,2]
[359514415,1746085841130,-33104.88413377,0.000232,2]
[359514416,1746085841141,-150.0,0.00023287,2]
[359514417,1746085841150,-3194.74,0.00023368,2]
[359514418,1746085841158,-9999.99,0.00023368,2]
[359514419,1746085841167,-999.99,0.00023368,2]
[359514420,1746085841175,-434.96,0.00023368,2]
[359514421,1746085841183,-150.99,0.00023368,2]
[359514422,1746085841192,-1010.78,0.00023368,2]
[359514423,1746085841200,-4568.68,0.00023368,2]
[359514424,1746085841209,-175.1,0.00023368,2]
[359514425,1746085841217,-694.02,0.00023368,2]
[359514426,1746085841225,-9999.99,0.00023368,2]
[359514427,1746085841233,-499.99,0.00023368,2]
[359514428,1746085841241,-5550.29541048,0.00023486,9]
[359514429,1746085841249,-200.0,0.000235,2]
[359514430,1746085841257,-220.0,0.00023644,2]
[359514431,1746085841265,-2351.0,0.00023735,2]
[359514432,1746085841274,-949.05,0.00023874,2]
[359514433,1746085841283,-500.0,0.00023933,2]
[359514434,1746085841289,-500.0,0.00023933,2]
[359514435,1746085841296,-500.0,0.00023933,2]
[359514436,1746085841306,-500.0,0.00023973,2]
[359514437,1746085841315,-501.61179285,0.00023973,2]
[359514438,1746085841325,-34780.36122397,0.00024,2]
[359514439,1746085841334,-985.65582656,0.00024,2]
[359514440,1746085841343,-7745.4860528,0.00024,14]
[359514441,1746085841353,-10676.03916215,0.00024,2]
[359514442,1746085841362,-322.84894421,0.00024183,2]
[359514443,1746085841371,-407.3691653,0.0002421,2]
[359514444,1746085841380,-3569.31157824,0.0002421,2]
[359514445,1746085841389,-5550.29541048,0.00024348,11]
[359514446,1746085841399,-1000.0,0.0002435,2]
[359514447,1746085841408,-150.01986085,0.00024534,2]
[359514448,1746085841417,-150.0,0.00024657,2]
[359514449,1746085841426,-300.0,0.00024658,2]
[359514450,1746085841438,-500.0,0.00024658,2]
[359514451,1746085841448,-1000.0,0.00024658,2]
[359514452,1746085841458,-73013.3208848,0.000248,3]
[359514453,1746085841469,-300.0,0.00024873,2]
[359514454,1746085841478,-583118.085103,0.000249,3]
[359514455,1746085841487,-500.0,0.00024998,2]
[359514456,1746085841496,-103980.62429215,0.00024999,2]
[359514457,1746085841506,-200.42694169,0.00025,2]
[359514458,1746085841517,-1723.61032466,0.00025,2]
[359514459,1746085841527,-303.21293968,0.00025,2]
[359514460,1746085841538,-200.0,0.00025,2]
[359514461,1746085841547,-2938.59560793,0.00025,2]
[359514462,1746085841558,-1011.95599952,0.00025,2]
[359514463,1746085841568,-150.0,0.00025,2]
[359514464,1746085841577,-150.0,0.00025,2]
[359514465,1746085841586,-150.0,0.00025,2]
[359514466,1746085841595,-450.0,0.00025,2]
[359514467,1746085841605,-5550.29541048,0.0002521,12]
[359514468,1746085841614,-250.0,0.00025269,2]
[359514469,1746085841625,-1000.0,0.00025352,2]
[359514470,1746085841634,-500.0,0.00025352,2]
[359514471,1746085841643,-200.68964993,0.00025421,2]
[359514472,1746085841653,-500.0,0.00025452,2]
[359514473,1746085841664,-1000.0,0.00025452,2]
[359514474,1746085841674,-1000.0,0.00025452,2]
[359514475,1746085841683,-714.88975929,0.00025452,2]
[359514476,1746085841692,-677.75275273,0.00025452,2]
[359514477,1746085841702,-1007.79745625,0.00025452,2]
[359514478,1746085841710,-501.06029694,0.00025452,2]
[359514479,1746085841719,-1002.20572104,0.00025452,2]
[359514480,1746085841728,-474.51724359,0.00025452,2]
[359514481,1746085841736,-500.68481339,0.00025452,2]
[359514482,1746085841747,-1000.0,0.00025452,2]
[359514483,1746085841756,-1000.0,0.00025452,2]
[359514484,1746085841765,-1000.0,0.00025452,2]
[359514485,1746085841774,-1004.14251621,0.00025452,2]
[359514486,1746085841783,-504.94248061,0.00025452,2]
[359514487,1746085841794,-511.2749024,0.00025452,2]
[359514488,1746085841803,-508.28233105,0.00025452,2]
[359514489,1746085841815,-502.84836243,0.00025452,2]
[359514490,1746085841829,-166.66,0.00025803,2]
[359514491,1746085841838,-517.0,0.00025974,2]
[359514492,1746085841849,-150.0,0.00026027,2]
[359514493,1746085841859,-5550.29541048,0.00026072,14]
[359514494,1746085841868,-157.55048229,0.00026073,2]
[359514495,1746085841877,-949.05,0.00026138,2]
[359514496,1746085841887,-1019.0,0.00026301,5]
[359514497,1746085841896,-1719.05522849,0.000264,2]
[359514498,1746085841907,-29031.61178925,0.000265,2]
[359514499,1746085841915,-1000.0,0.00026785,2]
[359514500,1746085841924,-189743.0,0.000269,2]
[359514501,1746085841933,-5550.29541048,0.00026934,16]
[359514502,1746085841942,-500.0,0.00027,2]
[359514503,1746085841952,-6077.46897222,0.00027342,2]
[359514504,1746085841961,-150.0,0.00027397,2]
[359514505,1746085841970,-500.0,0.00027397,2]
[359514506,1746085841980,-193.54667754,0.00027397,2]
[359514507,1746085841989,-500.0,0.00027397,2]
[359514508,1746085841999,-517.0,0.00027397,2]
[359514509,1746085842009,-6456.36,0.00027397,2]
[359514510,1746085842018,-1000.0,0.00027397,2]
[359514511,1746085842027,-174.54,0.00027397,10]
[359514512,1746085842036,-600.0,0.000274,2]
[359514513,1746085842046,-159786.181414,0.00027681,2]
[359514514,1746085842055,-5569.0,0.000277,3]
[359514515,1746085842065,-5550.29541048,0.00027797,17]
[359514516,1746085842074,-949.05,0.00028402,2]
[359514517,1746085842083,-322.84894421,0.00028467,2]
[359514518,1746085842092,-5569.0,0.000286,5]
[359514519,1746085842101,-5550.29541048,0.00028659,19]
[359514520,1746085842111,-150.0,0.00028767,2]
[359514521,1746085842120,-6456.36,0.00028767,2]
[359514522,1746085842129,-6797.84100435,0.00029,2]
[359514523,1746085842138,-54907.06774504,0.00029,2]
[359514524,1746085842147,-386.78279525,0.00029,6]
[359514525,1746085842156,-260.31776711,0.00029,2]
[359514526,1746085842166,-550.0,0.00029,2]
[359514527,1746085842175,-1000.0,0.0002922,2]
[359514528,1746085842184,-1002.31288123,0.00029413,5]
[359514529,1746085842193,-505.53479803,0.00029413,5]
[359514530,1746085842202,-1000.0,0.00029413,5]
[359514531,1746085842211,-1003.85916262,0.00029452,5]
[359514532,1746085842221,-5550.29541048,0.00029521,21]
[359514533,1746085842230,-634.87,0.00029573,2]
[359514534,1746085842239,-11072.45124997,0.0002991,2]
[359514535,1746085842248,-1158.44044072,0.0003,10]
[359514536,1746085842257,-1246.67556792,0.0003,2]
[359514537,1746085842266,-215.0,0.0003,2]
[359514538,1746085842276,-150.0,0.00030136,2]
[359514539,1746085842285,-6456.36,0.00030137,2]
[359514540,1746085842295,-150.0,0.00030137,2]
[359514541,1746085842304,-610.0,0.00030137,2]
[359514542,1746085842314,-160.0,0.00030137,2]
[359514543,1746085842323,-166.36249429,0.00030137,2]
[359514544,1746085842333,-5550.29541048,0.00030383,22]
[359514545,1746085842342,-949.05,0.00030666,2]
[359514546,1746085842351,-150.0,0.0003093,2]
[359514547,1746085842361,-600.0,0.00031,2]
[359514548,1746085842370,-5550.29541048,0.00031245,24]
[359514549,1746085842379,-313.29156098,0.000314,30]
[359514550,1746085842388,-237.217446,0.00031492,2]
[359514551,1746085842399,-150.0,0.00031506,2]
[359514552,1746085842408,-6456.36,0.00031507,2]
[359514553,1746085842417,-150.0,0.00031723,2]
[359514554,1746085842426,-237.217446,0.00031886,2]
[359514555,1746085842435,-1533.56696301,0.00032,2]
[359514556,1746085842444,-5550.29541048,0.00032107,26]
[359514557,1746085842454,-237.217446,0.00032279,2]
[359514558,1746085842465,-157.55048229,0.00032349,2]
[359514559,1746085842474,-150.0,0.00032516,2]
[359514560,1746085842483,-237.217446,0.00032673,2]
[359514561,1746085842493,-200.0,0.00032684,2]
[359514562,1746085842502,-322.84894421,0.0003275,2]
[359514563,1746085842512,-2145.06347334,0.0003275,2]
[359514564,1746085842521,-4658.27428866,0.000328,2]
[359514565,1746085842530,-150.0,0.00032876,2]
[359514566,1746085842539,-500.0,0.00032877,2]